[Event "Emanuel Lasker Open 2017"]
[Site "Gorzow"]
[Date "2017.06.17"]
[Round "6"]
[White "Lukasiewicz, Krzysztof"]
[Black "Bartnicki, Pawel"]
[Result "0-1"]
[ECO "B90"]
[WhiteElo "2098"]
[BlackElo "2078"]
[Annotator "NA RC"]
[PlyCount "74"]
[EventDate "2017.??.??"]
[EventType "swiss"]
[EventCountry "POL"]
[SourceTitle "playchess.com"]
[Source "ChessBase"]
[SourceQuality "1"]
[TimeControl "40/5400+30:1800+30"]

{[%evp 16,74,80,0,3,0,14,-65,32767,-76,-70,-70,-86,-128,-106,32767,32767,-121,-121,-116,32767,32767,32767,-504,32767,32767,32767,32767,32767,-604,32767,32767,32767,-499,-558,-653,-696,-706,32767,32767,32767,32767,-779,-705,-754,-806,32767,32767,32767,32767,32767,32767,-1072,-2486,-1412,-1925,-2168,-2762,-29988,-29986,-29989]} 1. e4 {[%emt 0:00:00]} c5 {[%emt 0:00:04]} 2. Nf3 {[%emt 0:00:09]} d6 {[%emt 0:00:04]} 3. d4 {[%emt 0:00:03]} cxd4 {[%emt 0:00:04]} 4. Nxd4 {[%emt 0:00:03]} Nf6 {[%emt 0:00:05]} 5. Nc3 {[%emt 0:00:02]} a6 {[%emt 0:00:04]} 6. Bc4 {[%emt 0:00:03]} b5 {[%emt 0:04:31]} 7. Bb3 {[%emt 0:02:19]} Bb7 {[%emt 0:05:04]} 8. O-O {[%emt 0:02:29]} Nbd7 {[%emt 0:09:20] B90: Sicilian Najdorf: Unusual White 6th moves, 6 Be3 Ng4 and 6 Be3 e5} 9. f4 {[%emt 0:17:01]} (9. Re1 $14) (9. Bg5 e6 10. Re1 h6 11. Bxf6 Nxf6 12. Qd3 Nd7 13. Qh3 Nc5 14. Bd5 exd5 15. exd5+ Be7 16. Nf5 Bc8 17. Nxe7 Bxh3 18. Nc6+ Kd7 19. Nxd8 Rhxd8 20. gxh3 {0-1 (41) Grandelius,N (2642)-Jobava,B (2698) Sweden 2016}) 9... Nxe4 {[%emt 0:31:52]} 10. Nxe4 {[%emt 0:05:29]} ({Reject} 10. Qh5 g6 $17) 10... Bxe4 {[%emt 0:03:38]} 11. Re1 {[%emt 0:00:27]} ({Don't play} 11. Qh5 g6 $17) ({Better is} 11. f5 $11) 11... d5 $146 {[%emt 0:06:49]} ({Predecessor:} 11... Nc5 12. Qe2 d5 13. Be3 e6 14. Nxb5 axb5 15. Bxc5 Bxc5+ {0-1 (15) Kelley,D-Hatala,J Seattle 1991}) 12. a4 {[%emt 0:04:37]} b4 {[%emt 0:02:03]} 13. Be3 $1 {[%emt 0:01:42]} Nc5 {[%emt 0:05:49]} 14. f5 {[%emt 0:02:06]} (14. Nc6 $11 {keeps the balance.} Qd6 15. Bxd5 Bxd5 16. Nxb4) 14... Nxb3 {[%emt 0:16:05]} 15. cxb3 {[%emt 0:00:26]} g6 {[%emt 0:00:59]} 16. f6 {[%emt 0:19:04]} exf6 {[%emt 0:04:12]} 17. Rc1 {[%emt 0:00:10]} Bg7 {[%emt 0:02:49]} 18. Nc6 {[%emt 0:00:43]} Qd7 {[%emt 0:01:32]} 19. Bc5 $2 {[%emt 0:05:06]} (19. Bf2 $17 {is more resistant.}) 19... Qxc6 {[%emt 0:00:59]} 20. Bxb4 {[%emt 0:00:16]} Qe6 {[%emt 0:00:46]} 21. Rc7 {[%emt 0:13:19]} Bf8 {[%emt 0:00:35]} 22. Qd4 {[%emt 0:00:44]} Bxb4 {[%emt 0:00:44]} 23. Qxb4 {[%emt 0:00:08]} Rd8 {[%emt 0:00:42]} 24. a5 {[%emt 0:03:11]} Qd6 {[%emt 0:00:32]} 25. Qa4+ {[%emt 0:00:04]} Kf8 {[%emt 0:00:13]} 26. Rec1 {[%emt 0:01:38]} Kg7 {[%emt 0:00:22]} 27. R7c6 {[%emt 0:00:47]} Qf4 {[%emt 0:00:12]} 28. Qd4 {[%emt 0:00:35]} Qg5 {[%emt 0:00:18]} 29. g3 {[%emt 0:00:28]} Qe5 {[%emt 0:00:27]} 30. Qf2 {[%emt 0:00:06]} Rd6 {[%emt 0:00:37]} 31. b4 {[%emt 0:01:30]} d4 {[%emt 0:00:50]} 32. R6c5 {[%emt 0:00:05]} Rd5 {[%emt 0:00:34]} 33. Rc7 {[%emt 0:00:19]} Rhd8 {[%emt 0:01:27]} 34. Ra7 {[%emt 0:01:21]} R5d7 {[%emt 0:00:31]} 35. Rxa6 {[%emt 0:00:16]} d3 {[%emt 0:00:20]} 36. Qd2 {[%emt 0:00:03]} Qd4+ {[%emt 0:00:11]} 37. Kf1 {[%emt 0:00:04]} Rd5 {[%emt 0:00:37]} 0-1

[Event "Emanuel Lasker Open 2017"]
[Site "Gorzow"]
[Date "2017.06.17"]
[Round "6"]
[White "Jankowiak, Tomasz"]
[Black "Chyzy, Jakub"]
[Result "0-1"]
[ECO "C95"]
[WhiteElo "1903"]
[BlackElo "1838"]
[Annotator "NA RC"]
[PlyCount "90"]
[EventDate "2017.??.??"]
[EventType "swiss"]
[EventCountry "POL"]
[SourceTitle "playchess.com"]
[Source "ChessBase"]
[SourceQuality "1"]
[TimeControl "40/5400+30:1800+30"]

1. e4 {[%emt 0:00:00]} e5 {[%emt 0:00:07]} 2. Nf3 {[%emt 0:00:00]} Nc6 {[%emt 0:00:06]} 3. Bb5 {[%emt 0:00:00]} a6 {[%emt 0:00:09]} 4. Ba4 {[%emt 0:00:00]} Nf6 {[%emt 0:00:07]} 5. O-O {[%emt 0:00:00]} Be7 {[%emt 0:00:05]} 6. Re1 {[%emt 0:00:02]} b5 {[%emt 0:00:07]} 7. Bb3 {[%emt 0:00:03]} d6 {[%emt 0:00:07]} 8. c3 {[%emt 0:00:08]} O-O {[%emt 0:00:08]} 9. h3 {[%emt 0:00:02]} Nb8 {[%emt 0:00:28]} 10. d4 {[%emt 0:03:41]} Nbd7 {[%emt 0:00:08]} 11. Nbd2 {[%emt 0:00:07]} Bb7 {[%emt 0:00:10]} 12. Bc2 {[%emt 0:00:14]} Re8 {[%emt 0:00:12]} 13. Nf1 {[%emt 0:00:05]} Bf8 {[%emt 0:00:08]} 14. Ng3 {[%emt 0:00:06]} g6 {[%emt 0:00:06]} 15. Bg5 {[%emt 0:00:44]} h6 {[%emt 0:01:00]} 16. Bd2 {[%emt 0:00:17]} Bg7 {[%emt 0:01:58]} 17. a4 {[%emt 0:00:57]} c5 {[%emt 0:01:53]} 18. d5 {[%emt 0:02:43]} c4 {[%emt 0:01:25]} 19. b4 {[%emt 0:00:40]} cxb3 $1 {[%emt 0:06:43]} 20. Bxb3 {[%emt 0:00:30] LiveBook: 20 Games} Nc5 {[%emt 0:00:17]} 21. c4 {[%emt 0:00:31]} Qd7 {[%emt 0:14:56]} 22. cxb5 {[%emt 0:04:51]} axb5 {[%emt 0:01:04]} 23. a5 {[%emt 0:00:21]} Nd3 {[%emt 0:09:17]} 24. Re3 {[%emt 0:01:30]} Nf4 {[%emt 0:00:37]} 25. Bb4 {[%emt 0:21:42]} Rec8 {[%emt 0:07:54]} 26. Ne2 {[%emt 0:15:22]} N6h5 {[%emt 0:04:50]} 27. Nc3 {[%emt 0:07:17]} g5 {[%emt 0:10:16]} 28. Nh2 {[%emt 0:05:50]} Nf6 {[%emt 0:06:05]} 29. Qf1 {[%emt 0:14:47]} Ba6 {[%emt 0:02:09]} 30. Ne2 {[%emt 0:01:21]} h5 {[%emt 0:07:44]} 31. Ng3 {[%emt 0:10:01]} Bf8 {[%emt 0:01:42]} 32. Qb1 {[%emt 0:01:40]} Rc7 {[%emt 0:04:02]} 33. Nf5 {[%emt 0:03:48]} Rac8 {[%emt 0:00:56]} (33... Bc8 $11) 34. Re1 {[%emt 0:00:49] [#]} Rc1 $3 {[%emt 0:06:30]} 35. Qxc1 {[%emt 0:05:43] grupa B} Rxc1 {[%emt 0:00:10]} 36. Raxc1 {[%emt 0:00:12] grupa B} Nd3 {[%emt 0:01:12] grupa B} 37. Bd2 {[%emt 0:01:52] [#]} (37. Rc3 $142 Nxe1 38. f3) 37... Nxe1 $2 {[%emt 0:00:28]} (37... Nxe4 $1 {[%mdl 512]} 38. Rxe4 Qxf5) 38. Bxe1 {[%emt 0:00:32]} Nxe4 {[%emt 0:00:34]} 39. g4 $2 {[%emt 0:00:01]} (39. Ne3) 39... hxg4 {[%emt 0:02:39]} 40. hxg4 {[%emt 0:00:00]} Nc5 {[%emt 0:00:58]} 41. Bc2 {[%emt 0:00:45]} Qb7 {[%emt 0:01:10]} 42. Ne3 {[%emt 0:02:28]} b4 {[%emt 0:02:03]} 43. Nf3 {[%emt 0:02:46]} b3 {[%emt 0:03:14]} 44. Bb1 {[%emt 0:14:20]} b2 {[%emt 0:00:32]} 45. Rd1 {[%emt 0:00:07]} Be2 {[%emt 0:00:37]} 0-1